Cogmind - Beta 17 @@@ ROGUE MODE // 2026.07.12 @ 03:22:44 Player: Smol John Result: Destroyed by HS-KOE(R) with Subdweller Machine Gun Performance ------------- Evolutions (0) 0 Regions Visited (3) 600 Robots Destroyed (12) 60 Value Destroyed (314) 314 Prototype IDs (0) 0 Alien Tech Used (0) 0 Bonus (0) 0 TOTAL SCORE: 974 Bonus ------- None Cogmind --------- Core Integrity 0/250 Matter 287/300 Energy 99/100 System Corruption 0% Temperature Cool (0) Movement Rolling (95) Ox1 Location -10/Subcaves Parts ------- > --- POWER (1) -------- (None) > --- PROPULSION (2) --- Wheel > --- UTILITY (2) ------ Medium Storage Unit > --- WEAPON (2) ------- Light Assault Rifle > --- INVENTORY (10) --- Ion Engine Light Treads Light Treads Aluminum Leg Compact Wheel Improved Heat Sink Small Storage Unit Large Storage Unit Light Assault Rifle Peak State ------------ > --- POWER ------------ Light Nuclear Core > --- PROPULSION ------- Aluminum Leg Aluminum Leg > --- UTILITY ---------- Medium Storage Unit > --- WEAPON ----------- Assault Rifle Assault Rifle > --- INVENTORY -------- Ion Engine Light Treads Light Treads Aluminum Leg Aluminum Leg Wheel Compact Wheel Small Storage Unit Large Storage Unit Small Laser [Rating: 9] Favorites ----------- Power Ion Engine Engine Ion Engine Power Core Light Nuclear Core Propulsion Aluminum Leg Leg Aluminum Leg Wheel Wheel Utility Medium Storage Unit Storage Medium Storage Unit Weapon Assault Rifle Energy Gun Small Laser Ballistic Gun Assault Rifle Build | -11 -10 -10 -10 ------- Run | Yrd Mat Min Sub Slots Evolved . | . . . . Power . | . . . . Propulsion . | . . . . Utility . | . . . . Weapon . | . . . . Parts Attached 13 | 7 2 3 1 Power 3 | 1 1 1 . Engine 2 | 1 . 1 . Core 1 | . 1 . . Reactor . | . . . . Propulsion 4 | 2 . 1 1 Treads . | . . . . Leg 3 | 2 . 1 . Wheel 1 | . . . 1 Hover . | . . . . Flight . | . . . . Utility 2 | 1 1 . . Device . | . . . . Storage 2 | 1 1 . . Processor . | . . . . Hackware . | . . . . Protection . | . . . . Artifact . | . . . . Weapon 4 | 3 . 1 . Energy Gun 1 | 1 . . . Energy Cannon . | . . . . Ballistic Gun 3 | 2 . 1 . Ballistic Cannon . | . . . . Launcher . | . . . . Special Weapon . | . . . . Impact Weapon . | . . . . Slashing Weapon . | . . . . Piercing Weapon . | . . . . Special Melee Weapon . | . . . . Unidentified Prototypes . | . . . . Parts Lost 8 | . . 4 4 Power 2 | . . 1 1 Propulsion 3 | . . 1 2 Utility . | . . . . Weapon 3 | . . 2 1 Highest Loss Streak 4 | . . 3 4 To Critical Strikes . | . . . . Average Backups 8 | 3 8 9 9 Power . | . 1 . 1 Propulsion 4 | 2 4 5 4 Utility 2 | . 1 2 3 Weapon . | . 1 . 1 Tool/Special . | . . . . Unused Backups 8 | . . . 8 Power 1 | . . . 1 Propulsion 4 | . . . 4 Utility 2 | . . . 2 Weapon 1 | . . . 1 Tool/Special . | . . . . Average Slot Usage (%) 80 | . 85 79 78 Engine 10 | . 10 9 12 Core 2 | . 3 3 . Leg 26 | . 28 28 23 Storage 14 | . 14 14 14 Energy Gun 7 | . . 6 13 Ballistic Gun 19 | . 28 17 14 Peak Build Rating 9 | 6 9 9 7 Average Rating 6 | 4 6 6 6 On Entrance 5 | . 6 9 7 Avg Prop Armor Cover (%) . | . . . . Naked Turns . | . . . . Heaviest Build 19 | 14 19 19 17 Greatest Support 20 | 20 20 20 20 Greatest Overweight (x) 3 | 2 . . 3 Average Overweight (x) . | . . . . Largest Inventory Capacity 10 | 8 10 10 10 Average Capacity 9 | 6 9 10 10 Most Carried 10 | 6 10 10 10 Average Carried 8 | 4 8 9 9 Final Capacity 10 | 8 10 10 10 Final Carried 10 | 6 10 10 9 Class Distribution -------------------- 100% | Mutant Dominant Class ---------------- Mutant | -10/Materials Mutant | -10/Mines Mutant | -10/Subcaves Resources | -11 -10 -10 -10 ----------- Run | Yrd Mat Min Sub Matter Collected 469 | 220 150 99 . Remotely . | . . . . Salvage Created 363 | . 197 133 33 Parts 22 | . 14 7 1 Haulers Intercepted . | . . . . Recyclers Shooed . | . . . . Parts Field Recycled . | . . . . Retrieved Matter . | . . . . Parts Self-Destructed 8 | . . . 8 Prevented . | . . . . Parts Restored . | . . . . Kills | -11 -10 -10 -10 ------- Run | Yrd Mat Min Sub Combat Hostiles Destroyed 12 | . 5 5 2 Guns 12 | . 5 5 2 Classes Destroyed 2 | . 1 1 . Swarmer 5 | . . 3 2 Grunt 7 | . 5 2 . Best Kill Streak 5 | . 5 3 2 Combat Bots Only 5 | . 5 3 2 Max Kills in Single Turn 1 | . 1 1 1 Gunslinging . | . . . . Exploded . | . . . . Melee . | . . . . Uniques/NPCs Destroyed . | . . . . Combat | -11 -10 -10 -10 -------- Run | Yrd Mat Min Sub Hostile Shots Fired 224 | . 42 43 139 Missed 100 | . 15 12 73 Hits 124 | . 27 31 66 Projectile 124 | . 27 31 66 Critical Strikes 2 | . . 1 1 Damage Taken 1073 | . 322 320 431 Core 267 | . 57 63 147 Absorbed by Shields . | . . . . Core Remaining (%) 100 | 100 . . . Volleys Fired 52 | . 18 21 13 Largest 2 | . 2 2 2 Hottest 60 | . 40 40 60 Shots Fired 87 | . 36 27 24 Gun 87 | . 36 27 24 Cannon . | . . . . Launcher . | . . . . Special . | . . . . Kinetic 69 | . 36 20 13 Thermal 18 | . . 7 11 Explosive . | . . . . Electromagnetic . | . . . . Robot Hit Streak 9 | . 9 6 5 Robot Miss Streak 4 | . 3 2 4 Penetration Max . | . . . . Secondary Targets 1 | . . . 1 Max Gunslinging Chain 1 | . . . 1 Shots Hit Robots 51 | . 24 16 11 Core Hits 23 | . 11 8 4 Critical Kills . | . . . . Critical Parts Destroyed . | . . . . Critical Strikes . | . . . . Melee Attacks . | . . . . Impact . | . . . . Slashing . | . . . . Piercing . | . . . . Sneak Attacks . | . . . . Combat Hostiles . | . . . . Follow-up Attacks . | . . . . Damage Inflicted 616 | . 319 198 99 Guns 607 | . 310 198 99 Cannons . | . . . . Explosions . | . . . . Melee . | . . . . Ramming 9 | . 9 . . Kinetic 508 | . 310 152 46 Thermal 99 | . . 46 53 Explosive . | . . . . Electromagnetic . | . . . . Impact . | . . . . Slashing . | . . . . Piercing . | . . . . Highest Corruption . | . . . . Average Corruption . | . . . . Corruption Purged . | . . . . Corruption Blocked . | . . . . Overload Shots . | . . . . Overflow Damage . | . . . . Projectiles . | . . . . Explosions . | . . . . Melee . | . . . . Knockbacks . | . . . . Impact . | . . . . Kinetic . | . . . . Secondary . | . . . . Self-Inflicted Damage . | . . . . Shots . | . . . . Rammed . | . . . . Targets Rammed 3 | . 3 . . Kicked 3 | . 3 . . Crushed . | . . . . Highest Temperature 10 | . 9 10 3 Average Temperature 3 | . 3 5 2 Received Heat Transfer 426 | . 183 93 150 Siege Activations . | . . . . Martial Activations . | . . . . Shielding Activations . | . . . . Robots Disrupted . | . . . . Combat Hostiles . | . . . . Robots Corrupted . | . . . . Combat Hostiles . | . . . . Parts Fried . | . . . . Impact Corruptions . | . . . . Robots Melted . | . . . . Combat Hostiles . | . . . . Parts Melted . | . . . . Heat Transferred 225 | . . 100 125 Parts Sabotaged . | . . . . Parts Stolen . | . . . . Parts Stripped . | . . . . Power Chain Reactions . | . . . . Alert | -11 -10 -10 -10 ------- Run | Yrd Mat Min Sub Maximum Alert Level . | . . . . Low Security (%) 100 | 100 100 100 . Level 1 . | . . . . Level 2 . | . . . . Level 3 . | . . . . Level 4 . | . . . . Level 5 . | . . . . High Security . | . . . . Max Security . | . . . . Peak Influence 100 | . 100 60 . Initial 27 | . . 27 . Average 27 | . 32 32 . Influence Increases 408 | . 128 120 160 Destroy 0b10 Robot/C 240 | . 100 100 40 Destroy Leader 40 | . 20 20 . Successful Hack 8 | . 8 . . Lose Combat Pursuer 120 | . . . 120 Influence Decreases 318 | . 58 160 100 Entered New Map 59 | . . 43 16 Time Decay 182 | . 58 80 44 Lost Part 77 | . . 37 40 Squads Dispatched 1 | . 1 . . Investigation 1 | . 1 . . Extermination . | . . . . Reinforcement . | . . . . Assault . | . . . . Garrison . | . . . . Intercept . | . . . . Searches Triggered . | . . . . Construction Impeded . | . . . . Haulers Reinforced . | . . . . Active Scanning Responses . | . . . . Cargo Convoy Interrupts . | . . . . Stealth | -11 -10 -10 -10 --------- Run | Yrd Mat Min Sub Distress Signals . | . . . . Communications Jammed . | . . . . Distress Signals . | . . . . Times Spotted 16 | . 5 5 6 Peak Tracking Total 6 | . 3 3 6 Tactical Retreats 3 | . . . 3 Traps | -11 -10 -10 -10 ------- Run | Yrd Mat Min Sub Traps Triggered . | . . . . Indirectly . | . . . . Trap Hack Attempts . | . . . . Triggered . | . . . . Disarmed . | . . . . Reprogrammed . | . . . . Reused . | . . . . Traps Extracted . | . . . . Installed . | . . . . Triggered . | . . . . Machines | -11 -10 -10 -10 ---------- Run | Yrd Mat Min Sub Machines Disabled . | . . . . Max in Single Turn . | . . . . Machines Repaired . | . . . . Machines Dismantled . | . . . . Machines Sabotaged . | . . . . Overloaded Fab Kills . | . . . . Hacking | -11 -10 -10 -10 --------- Run | Yrd Mat Min Sub Machines Accessed 2 | . 2 . . Terminals 2 | . 2 . . Fabricators . | . . . . Repair Stations . | . . . . Recycling Units . | . . . . Scanalyzers . | . . . . Garrison Access . | . . . . Total Hacks 5 | . 5 . . Successful 1 | . 1 . . Failed 4 | . 4 . . Catastrophic 1 | . 1 . . Database Lockouts . | . . . . Manual 5 | . 5 . . Terminals 5 | . 5 . . Fabricators . | . . . . Repair Stations . | . . . . Recycling Units . | . . . . Scanalyzers . | . . . . Garrison Access . | . . . . Terminal Hacks 1 | . 1 . . Branch Access Points 1 | . 1 . . Fabricator Hacks . | . . . . Repair Station Hacks . | . . . . Recycling Unit Hacks . | . . . . Scanalyzer . | . . . . Garrison Access Hacks . | . . . . Unauthorized Hacks . | . . . . Terminals . | . . . . Fabricators . | . . . . Repair Stations . | . . . . Recycling Units . | . . . . Scanalyzers . | . . . . Garrison Access . | . . . . Data Cores Recovered . | . . . . Used . | . . . . Hacking Detections 2 | . 2 . . Full Trace Events 2 | . 2 . . Feedback Events . | . . . . Feedback Blocked . | . . . . Robot Schematics Acquired . | . . . . Robots Built . | . . . . Authchips . | . . . . Time . | . . . . Total Robot Build Rating . | . . . . Part Schematics Acquired . | . . . . Parts Built . | . . . . Authchips . | . . . . Time . | . . . . Total Part Build Rating . | . . . . Part Studies Acquired . | . . . . Parts Repaired . | . . . . Time . | . . . . Parts Recycled . | . . . . Recycled Matter . | . . . . Retrieved Matter . | . . . . Retrieved Components . | . . . . Parts Scanalyzed . | . . . . Part Schematics Acquired . | . . . . Parts Damaged . | . . . . Bothacking | -11 -10 -10 -10 ------------ Run | Yrd Mat Min Sub Used RIF Installer . | . . . . Robots Hacked . | . . . . Non-combat . | . . . . Combat . | . . . . Robot Hacks Applied . | . . . . Relay Couplers Released . | . . . . Fabnet Peak Effective % . | . . . . Robots Rewired . | . . . . Allies Hacked . | . . . . Hacks Repelled . | . . . . Allies | -11 -10 -10 -10 -------- Run | Yrd Mat Min Sub Total Allies . | . . . . Largest Group . | . . . . Highest-Rated Group . | . . . . Highest-Rated Ally . | . . . . Total Orders . | . . . . Ally Attacks . | . . . . Total Damage . | . . . . Kills . | . . . . Allies Corrupted . | . . . . Allies Melted . | . . . . Intel | -11 -10 -10 -10 ------- Run | Yrd Mat Min Sub Active Infowar (turns) . | . . . . Robot Analysis Total . | . . . . Derelict Logs Recovered . | . . . . Drone Launches . | . . . . Drone Recoveries . | . . . . Exploration | -11 -10 -10 -10 ------------- Run | Yrd Mat Min Sub Turns Passed 748 | 80 212 173 283 Spaces Moved 468 | 63 116 92 197 Core 23 | 21 . . 2 Treads . | . . . . Legs 428 | 42 116 92 178 Wheels 17 | . . . 17 Hover . | . . . . Flight . | . . . . Fastest Speed 50 | 50 120 120 95 Average Speed 116 | 101 120 120 118 Slowest Speed 200 | 150 120 120 200 Overloaded Moves . | . . . . Propulsion Burnouts . | . . . . Robots Hopped . | . . . . Potential Cave-ins . | . . . . Cave-ins Triggered . | . . . . Exploration Rate (%) 14 | 3 24 20 12 Regions Visited 3 Branch Regions 2 Pre-discovered Areas . | . . . . Known Exits Taken 1 | . 1 . . Unknown Exits Taken 2 | 1 . 1 . Scrap Searched 1 | . . 1 . Spaces Dug . | . . . . Terrain Destroyed . | . . . . Melee . | . . . . Projectile . | . . . . AOE . | . . . . Terrain Rammed . | . . . . Walls Destroyed . | . . . . Machines Disabled . | . . . . Actions | -11 -10 -10 -10 --------- Run | Yrd Mat Min Sub Total 579 | 75 152 127 225 Wait 31 | . 9 8 14 Move 465 | 62 115 91 197 Hop . | . . . . Pick Up 13 | 6 4 3 . Fast Attach 7 | 6 . 1 . Attach 4 | . . 3 1 Detach . | . . . . Swap 3 | 1 2 . . Drop 1 | . 1 . . Fire 52 | . 18 21 13 Melee . | . . . . Ram . | . . . . Kick 3 | . 3 . . Crush . | . . . . Escape Stasis . | . . . . Rewire . | . . . . Trap . | . . . . Miscellaneous . | . . . . Route ------- -11/Scrapyard -10/Materials (discovered 2 exits: *Min x2) -10/Mines -10/Subcaves History --------- Turn | Location | Event 7 | -11/Scrapyard | Discovered new exit (range 14) 81 | -11/Scrapyard | Entered Materials 179 | -10/Materials | Identified exit to Mines 293 | -10/Materials | Entered Mines 315 | -10/Mines | Met a Derelict bent on vengeance 316 | -10/Mines | Build established: Mutant 377 | -10/Mines | Lost 3 parts (1p1n1w) 454 | -10/Mines | Discovered new exit (range 10) 466 | -10/Mines | Entered Subcaves 467 | -10/Subcaves | Approached by a straggling Scientist 694 | -10/Subcaves | Core integrity fell below 50% 719 | -10/Subcaves | Core integrity fell below 20% 749 | -10/Subcaves | Destroyed by HS-KOE(R) with Subdweller Machine Gun Last Messages --------------- 00470_ QA-R2N(c): "Hey, let me tag along and I can get us both out of this nasty situation. At least I think I can... The group I got separated from was talking about a shortcut back to the UFD." QA-R2N(c): "I think it's somewhere west of here" 00533_ KG-2M1(u) builds Twisted Machinery. QA-R2N(c): "I think it's somewhere west of here" 00698_ Aluminum Leg destroyed. 00703_ S-10 Pest destroyed. 00704_ Switching to secondary target: S-10 Pest. 00706_ Ion Engine destroyed. 00712_ Subatomizers dissect the Lgt. Ion Engine. 00718_ S-10 Pest destroyed. QA-R2N(c): "I think it's somewhere west of here" 00721_ Lgt. Ion Engine fries itself beyond repair. 00722_ Flight Unit fries itself beyond repair. 00728_ Sml. Laser destroyed. Map ----- +----------------------------------------------------+ | ???????????????????????????????# ##?## #???# | | ???????????????????????????????# ##??# #???# | | ???????????????????????????????# #?## ##???# | | ???????????????????????????????# #?# #????# | | ???????????????????????????????# #?# #????# | | ???????????????????????????????#### #?# ##????? | | ??????????????????????????????????## #### ##?????# | | ???????????????????????????????????# #####?????## | | ??????????????????????????????????## #??????## | | ??????????????????????????????????# ##??????# | | ??????????????????????????????????# ##?????# | | ????????????????????????????????### #?######## | | ???????????????????????????????## ## #???? | | ???????????????????????????????# ##### | | ???????????????????????????????# | | ???????????????????????????????## | | ????????????????????????????????## % % | | ?????????????????????????????????# %#### | | ????????????????????????????????## ##??? | | ?????????????????????????######## ###???? | | ????????????????????????## # ## ##?????? | | ???????????????????????## #### ### ##??????? | | ????????????" ## # ##### s##??## #?# #???????? | | ????????????" "R % #????# #?#### #???????? | | ????????????" R" = #????# #????####???????? | | ?????????????# ##### @#????# #???????????????? | | ??????????????????????### #??? #???????????????? | | ????????????????????????# ?? #???????????????? | | ????????????????????????######?###???????????????? | | ?????????????????????????????????????????????????? | | ?????????????????????????????????????????????????? | | ?????????????????????????????????????????????????? | | ?????????????????????????????????????????????????? | | ?????????????????????????????????????????????????? | | ?????????????????????????????????????????????????? | | ?????????????????????????????????????????????????? | | ?????????????????????????????????????????????????? | | ?????????????????????????????????????????????????? | | ?????????????????????????????????????????????????? | | ?????????????????????????????????????????????????? | | ?????????????????????????????????????????????????? | | ?????????????????????????????????????????????????? | | | | | | | | | | | | | | | | | +----------------------------------------------------+ Best States ------------- Heat Dissipation 25 Energy Generation 14 Energy Capacity 250 Matter Stores 300 Matter Capacity 300 Sight Range 16 Terrain Scan Density 10 Evasion (%) 55 Item Schematics ----------------- None Robot Schematics ------------------ None Fabricated ------------ Nothing Repaired ---------- Nothing Studied --------- None Alien Tech Used ----------------- None Achievements -------------- None Challenges ------------ None Game ------ Seed ContainmentGhostLink Manual? 0 Play Time 00:06:53 Cumulative 29.9 hours Start 2026.07.12 @ 03:17:27 End 2026.07.12 @ 03:22:44 Sessions 1 Manual Loads 0 Difficulty Rogue Special Mode None Game No. 45 Rogue 45 Adventurer 0 Explorer 0 Win Type - Total 0 Types 0/0/0/0/0/0/0/0/0/0 Lore% 28 Gallery% 28 Achievement% 21 Wizard Run 0 Options --------- Layout 1 ASCII 0 Keyboard 0 Movement Mouse Keybinds 0 Fullscreen 1 Font 20/SmallcapsGlow Map View 50x35 Zoom Use 0% Tactical HUD 1 Map Filters NONE Filters NONE Steam 1 RUN: 1b9a5788-81ef-4b86-9579-7b92f86dc562